bitfinex/quotes_ETHUSD_20230403
["timestamp","ask_amount","ask_price","bid_price","bid_amount"]
[1680543607188,0.27728,1803.3,1803.1,0.25220148]
[1680543607996,3.28326,1803.4,1803.1,0.25220148]
[1680543608188,3.83776,1803.4,1803.1,0.25220148]
[1680543608528,5.48430172,1803.4,1803.1,0.25220148]
[1680543608734,0.02005415,1803.3,1803.1,0.25220148]
[1680543608936,0.02005415,1803.3,1802.6,0.1]
[1680543608937,0.83184,1803.2,1802.6,0.1]
[1680543609136,0.83184,1803.2,1802.7,0.25220148]
[1680543609302,7.46844241,1803.2,1802.7,0.25220148]
[1680543609517,7.47044241,1803.2,1802.7,0.25220148]
[1680543609837,6.91588241,1803.2,1802.6,0.37737]
[1680543610041,6.91588241,1803.2,1802.8,0.25220148]
[1680543610196,3.69158824,1803.1,1802.8,0.25220148]
[1680543610390,1.9412,1803.0,1802.8,0.25220148]
[1680543611929,7.7962,1803.0,1802.8,0.25220148]
[1680543612163,10.56422218,1803.0,1802.6,0.35220148]
[1680543612338,5.855,1802.8,1802.6,0.1]
[1680543612662,0.83208,1802.7,1802.6,0.1]
[1680543613460,1.94152,1802.7,1802.6,0.1]
[1680543613625,7.81657415,1802.7,1802.6,0.1]
[1680543613976,7.81857415,1802.7,1802.6,0.1]
[1680543614125,8.60043157,1802.7,1802.6,0.1]
[1680543614872,1.63599157,1802.7,1802.6,0.1]
[1680543615024,0.85213415,1802.7,1802.6,0.1]
[1680543615466,3.008,1802.9,1802.6,0.35586816]
[1680543615626,5.8416,1803.0,1802.6,0.35586816]
[1680543615627,6.12692,1803.0,1802.8,0.25220148]
[1680543615970,0.008,1803.0,1802.8,0.25220148]
[1680543616135,3.0,1803.1,1802.8,0.20220148]
[1680543616724,0.30333415,1803.2,1802.8,0.20220148]
[1680543616934,0.29733415,1803.2,1802.8,0.20220148]
[1680543617363,0.85189415,1803.2,1802.8,0.20220148]
[1680543617565,8.78691356,1803.2,1802.8,0.20220148]
[1680543617863,3.0,1803.1,1802.9,0.20220148]
[1680543618024,0.83194,1803.0,1802.9,0.20220148]
[1680543618225,0.83194,1803.0,1802.7,0.20220148]
[1680543618429,5.855,1802.9,1802.7,0.20220148]
[1680543618722,0.002,1802.9,1802.7,0.20220148]
[1680543618961,0.27733,1802.9,1802.6,0.1]
[1680543619167,6.4096,1803.1,1802.9,0.20220148]
[1680543619168,0.27931,1803.1,1802.9,0.20220148]
[1680543619468,4.52545941,1803.2,1802.9,0.20220148]
[1680543619469,4.25017941,1803.2,1802.9,0.20220148]
[1680543619635,3.27729,1803.2,1802.9,0.20220148]
[1680543619836,0.27729,1803.2,1802.9,0.20220148]
[1680543620037,3.0,1803.3,1802.9,0.20220148]
[1680543620270,3.0,1803.3,1802.9,0.27732]
[1680543620469,0.002,1803.4,1803.1,0.20220148]
[1680543620766,0.55442,1803.7,1803.3,0.20220148]
[1680543620921,0.27723,1803.6,1803.3,0.20220148]
[1680543621129,5.855,1803.5,1803.3,0.20220148]
[1680543621456,6.68675,1803.4,1802.8,0.006]
[1680543621664,14.49028218,1803.4,1802.7,0.20220148]
[1680543621868,0.02005415,1803.3,1802.7,0.20220148]
[1680543622072,10.56892,1803.2,1802.6,0.30220148]
[1680543622265,2.76602218,1803.1,1802.6,0.30220148]
[1680543622472,6.68696,1803.0,1802.6,0.30220148]
[1680543622788,0.29739415,1802.9,1802.6,0.30220148]
[1680543623278,0.02005415,1802.9,1802.7,0.74909252]
[1680543623486,0.02005415,1802.9,1802.7,0.951294]
[1680543623699,3.0,1803.0,1802.7,0.951294]
[1680543623855,3.002,1803.2,1802.7,1.228644]
[1680543624064,3.27729,1803.2,1802.7,0.951294]
[1680543624251,3.002,1803.3,1802.7,1.228644]
[1680543624459,0.27728,1803.2,1802.7,0.951294]
[1680543624653,8.709198,1803.2,1802.7,0.951294]
[1680543624869,3.0,1803.1,1802.7,0.951294]
[1680543625068,0.83194,1803.0,1802.7,0.951294]
[1680543625272,0.83194,1803.0,1802.7,0.20220148]
[1680543626294,0.27731,1803.0,1802.7,0.9513318]
[1680543627021,3.85197415,1803.1,1802.7,0.9513318]
[1680543627172,4.99737637,1803.1,1802.7,0.9513318]
[1680543628075,4.99737637,1803.1,1802.7,0.20220148]
[1680543628281,10.85237637,1803.1,1802.7,0.20220148]
[1680543628475,10.85437637,1803.1,1802.7,0.20220148]
[1680543628835,0.83199,1802.9,1802.6,0.1]
[1680543629000,5.855,1802.8,1802.6,0.1]
[1680543629180,0.27736,1802.7,1802.6,0.1]
[1680543629380,0.946265,1802.7,1802.6,0.1]
[1680543629579,0.27736,1802.7,1802.6,0.1]
[1680543629823,0.83208,1802.7,1802.6,0.1]
[1680543630016,0.83208,1802.7,1802.6,0.49418225]
[1680543630316,6.68708,1802.7,1802.6,0.49418225]
[1680543630530,6.68908,1802.7,1802.6,0.49418225]
[1680543630728,7.46893,1802.7,1802.6,0.49418225]
[1680543632780,7.46893,1802.7,1802.6,0.44418225]
[1680543632975,7.41893,1802.7,1802.6,0.44418225]
[1680543634182,7.41893,1802.7,1802.6,0.05]
[1680543635180,7.41893,1802.7,1802.6,0.46473594]
[1680543636216,7.41893,1802.7,1802.6,0.05]
[1680543636217,13.41495218,1802.7,1802.6,0.05]
[1680543637545,16.75595218,1802.7,1802.6,0.05]
[1680543637905,4.00921,1802.7,1802.6,0.05]
[1680543638268,0.002,1802.8,1802.7,0.20220148]
[1680543638413,0.002,1803.1,1802.7,0.20220148]
[1680543638743,17.40561182,1803.4,1803.1,0.20220148]
[1680543638897,2.01783118,1803.3,1803.1,0.20220148]
[1680543639103,5.855,1803.2,1803.1,0.20220148]
[1680543639300,0.27928,1803.2,1803.1,0.20220148]
[1680543639499,0.27728,1803.2,1803.1,0.20220148]
[1680543639796,2.29510118,1803.3,1803.1,0.20220148]
[1680543640022,6.08451012,1803.2,1803.1,0.60322215]
[1680543640211,6.36379012,1803.2,1803.1,0.60322215]
[1680543640940,0.002,1803.2,1803.1,0.60322215]
[1680543641125,0.27728,1803.2,1803.1,0.60322215]
[1680543641324,0.27728,1803.3,1803.1,0.60322215]
[1680543641968,0.85182415,1803.4,1803.1,0.60322215]
[1680543642196,1.49498057,1803.4,1803.1,0.60322215]
[1680543642341,13.45700275,1803.4,1803.1,0.60322215]
[1680543642656,13.45900275,1803.4,1803.1,0.40102067]
[1680543642872,5.855,1803.2,1803.1,0.40102067]
[1680543643044,7.81802415,1803.2,1803.1,0.40102067]
[1680543643242,7.81802415,1803.2,1802.9,0.20220148]
[1680543644167,7.81802415,1803.2,1803.0,0.40154309]
[1680543644383,10.58404633,1803.2,1803.0,0.40154309]
[1680543644540,9.91340463,1803.1,1803.0,0.40154309]
[1680543644887,10.74730463,1803.1,1803.0,0.40154309]
[1680543645252,10.74730463,1803.1,1802.6,0.25220148]
[1680543646077,10.74730463,1803.1,1802.7,0.40320096]
[1680543646631,10.74730463,1803.1,1802.8,0.20220148]
[1680543646977,0.83199,1802.9,1802.8,0.20220148]
[1680543647134,3.83199,1802.9,1802.8,0.20220148]
[1680543647335,9.68699,1802.9,1802.6,0.05]
[1680543647531,9.68899,1802.9,1802.6,0.05]
[1680543647770,10.87649005,1802.9,1802.6,0.05]
[1680543648134,10.87649005,1802.9,1802.8,0.20220148]
[1680543648135,8.857,1802.9,1802.8,0.20220148]
[1680543648333,0.002,1802.9,1802.8,0.20220148]
[1680543648568,0.27726,1803.4,1802.7,1.23526096]
[1680543648779,0.27726,1803.4,1803.1,0.20220148]
[1680543648780,0.83176,1803.4,1803.1,0.20220148]
[1680543648946,2.76602218,1803.3,1803.1,0.20220148]
[1680543649186,0.27728,1803.2,1803.1,0.20220148]
[1680543649366,6.49206422,1803.2,1803.1,0.20220148]
[1680543649568,7.04862422,1803.2,1803.1,0.20220148]
[1680543649981,0.63906422,1803.2,1803.1,0.20220148]
[1680543650183,0.63706422,1803.2,1803.1,0.20220148]
[1680543650419,6.49206422,1803.2,1803.1,0.20220148]
[1680543650572,6.49406422,1803.2,1803.1,0.20220148]
[1680543651400,0.63906422,1803.2,1803.1,0.20220148]
[1680543651609,6.49206422,1803.2,1803.1,0.20220148]
[1680543651816,6.49406422,1803.2,1803.1,0.20220148]
[1680543652410,0.27928,1803.2,1803.1,0.20220148]
[1680543652585,0.27728,1803.2,1803.1,0.20220148]
[1680543652910,0.02205415,1803.4,1803.3,0.20220148]
[1680543653065,0.02005415,1803.4,1803.3,0.20220148]
[1680543653896,0.02005415,1803.4,1803.3,0.15220148]
[1680543654212,6.13424,1803.5,1803.3,0.15220148]
[1680543654213,0.002,1803.5,1803.3,0.15220148]
[1680543654416,0.69338183,1803.8,1803.7,0.15220148]
[1680543654589,0.11000001,1803.8,1803.7,0.15220148]
[1680543654915,0.94157001,1803.8,1803.7,0.15220148]
[1680543655210,0.94157001,1803.8,1803.7,0.55417378]
[1680543655413,0.38719001,1803.8,1803.7,0.55417378]
[1680543655624,0.11000001,1803.8,1803.7,0.55417378]
[1680543655983,0.11000001,1803.8,1803.7,0.15220148]
[1680543656428,0.38719001,1803.8,1803.7,0.15220148]
[1680543656759,0.94157001,1803.8,1803.7,0.15220148]
[1680543657222,1.04672701,1803.8,1803.7,0.15220148]
[1680543657604,0.49234701,1803.8,1803.7,0.15220148]
[1680543657814,1.04672701,1803.8,1803.7,0.15220148]
[1680543658323,1.04672701,1803.8,1803.7,0.54569233]
[1680543658984,1.04672701,1803.8,1803.7,0.39349085]
[1680543659479,13.00874919,1803.8,1803.7,0.39349085]
[1680543659683,18.39374919,1803.8,1803.7,0.00049085]
[1680543659888,28.33174919,1803.8,1803.7,0.00049085]
[1680543660084,0.002,1803.6,1802.7,0.008]
[1680543660328,6.68687,1803.2,1802.6,0.05]
[1680543660537,6.68887,1803.2,1802.6,0.05966668]
[1680543660737,7.357557,1803.2,1802.6,0.05966668]
[1680543661224,7.357557,1803.2,1802.7,0.3419222]
[1680543661631,0.002,1803.2,1802.8,0.00366627]
[1680543661935,0.83184,1803.2,1802.8,0.00366627]
[1680543663043,0.27728,1803.2,1802.8,0.00366627]
[1680543663535,0.83184,1803.2,1802.8,0.00366627]
[1680543664110,6.77202942,1803.2,1802.8,0.00366627]
[1680543664304,0.36446942,1803.2,1802.8,0.00366627]
[1680543664500,0.27728,1803.2,1802.8,0.00366627]
[1680543664715,0.83184,1803.2,1802.8,0.00366627]
[1680543666039,0.27728,1803.2,1802.8,0.00366627]
[1680543666237,0.29932415,1803.3,1802.8,0.28100627]
[1680543666445,0.29732415,1803.3,1802.8,0.28100627]
[1680543666616,1.26820757,1803.3,1802.8,0.28100627]
[1680543667142,7.12320757,1803.3,1802.9,0.34087707]
[1680543667343,7.67973757,1803.3,1802.9,0.34087707]
[1680543668060,0.99293757,1803.3,1802.9,0.34087707]
[1680543668221,0.99093757,1803.3,1802.7,1.56072]
[1680543668418,0.02005415,1803.3,1802.8,0.433412]
[1680543668623,3.0,1803.4,1802.9,4.91902218]
[1680543668856,0.8318,1803.3,1802.9,4.92502218]
[1680543669061,1.94087,1803.3,1802.8,0.008]
[1680543669362,6.6868,1803.3,1802.7,1.006]
[1680543669558,6.6888,1803.3,1802.7,0.006]
[1680543669855,7.35748,1803.3,1802.7,0.006]
[1680543670217,7.35748,1803.3,1802.6,3.04776187]
[1680543670413,7.35748,1803.3,1802.6,5.81378405]
[1680543670652,7.35748,1803.3,1802.6,5.81578405]
[1680543670859,7.35748,1803.3,1802.6,5.81945073]
[1680543671255,0.94795,1803.3,1802.7,2.76602218]
[1680543671423,0.8318,1803.3,1802.7,2.77202218]
[1680543671633,3.27726,1803.4,1802.8,2.15666627]
[1680543671940,0.83176,1803.4,1802.9,2.76602218]
[1680543672157,0.83176,1803.4,1802.9,4.91902218]
[1680543673023,0.83176,1803.4,1802.9,4.92502218]
[1680543675287,0.02005415,1803.3,1802.9,0.006]
[1680543675427,0.27728,1803.2,1802.8,0.00366627]
[1680543675825,0.83184,1803.2,1802.8,0.00366627]
[1680543677183,1.02793742,1803.2,1802.7,0.006]
[1680543677494,1.02793742,1803.2,1802.6,0.62340187]
[1680543677671,1.02793742,1803.2,1802.6,3.38942405]
[1680543679084,1.02793742,1803.2,1802.7,0.34527896]
[1680543679411,1.02793742,1803.2,1802.7,0.35127896]
[1680543683295,1.02986446,1803.2,1802.7,0.34927896]
[1680543683442,1.02986446,1803.2,1802.7,0.35127896]
[1680543683443,1.02586446,1803.2,1802.7,0.35127896]
[1680543684681,1.04591861,1803.2,1802.7,0.35127896]
[1680543685577,1.04591861,1803.2,1802.7,0.34527896]
[1680543686076,1.04591861,1803.2,1802.6,2.82568886]
[1680543691798,0.84982119,1803.2,1802.8,2.153]
[1680543692008,0.002,1803.4,1803.1,5.855]
[1680543692295,0.002,1803.6,1803.2,2.76602218]
[1680543692462,0.27922,1803.6,1803.2,2.76602218]
[1680543693278,0.27922,1803.6,1803.2,2.77202218]
[1680543693871,0.002,1803.6,1803.2,3.04330218]
[1680543694051,0.002,1803.6,1803.2,2.76602218]
[1680543694256,0.63696073,1803.5,1803.2,3.04330218]
[1680543694596,0.63696073,1803.5,1803.2,8.90430218]
[1680543694798,0.63696073,1803.5,1803.2,9.46086218]
[1680543694964,0.63696073,1803.5,1803.2,8.90630218]
[1680543695774,0.63696073,1803.5,1803.2,8.62902218]
[1680543695958,0.63696073,1803.5,1803.2,8.90630218]
[1680543696153,0.63696073,1803.5,1803.2,3.05130218]
[1680543696381,0.63696073,1803.5,1803.2,2.77202218]
[1680543696588,0.91420073,1803.5,1803.2,0.006]
[1680543696893,0.91420073,1803.5,1803.1,3.53766566]
[1680543697056,0.91420073,1803.5,1803.1,3.30368784]
[1680543697263,1.46867073,1803.5,1803.1,3.30368784]
[1680543697571,1.46867073,1803.5,1803.1,2.77568784]
[1680543699982,0.91420073,1803.5,1803.1,2.77568784]
[1680543700190,1.46867073,1803.5,1803.1,2.77568784]
[1680543701214,0.91420073,1803.5,1803.1,2.77568784]
[1680543701895,1.46867073,1803.5,1803.1,0.006]
[1680543702117,0.09142007,1803.4,1803.0,0.006]
[1680543702274,0.09142007,1803.4,1802.9,0.006]
[1680543702275,0.83181,1803.3,1802.9,0.006]
[1680543702603,0.92413301,1803.3,1802.8,0.008]
[1680543702765,6.77913301,1803.3,1802.7,0.006]
[1680543702967,0.83191,1803.1,1802.7,0.006]
[1680543703710,0.83191,1803.1,1802.6,0.056]
[1680543704083,0.83191,1803.1,1802.6,0.05]
[1680543704283,0.27733,1802.9,1802.6,0.05]
[1680543705706,0.83199,1802.9,1802.6,0.05]
[1680543706073,0.82825277,1802.9,1802.6,0.05]
[1680543707127,6.68325277,1802.9,1802.6,0.05]
[1680543707289,9.93152,1802.7,1802.6,0.05]
[1680543707473,14.2466504,1802.7,1802.6,0.05]
[1680543708129,20.5876504,1802.7,1802.6,0.05]
[1680543708333,21.8176504,1802.7,1802.6,0.05]
[1680543708477,0.05,1802.6,1802.4,0.1]
[1680543708682,15.48968218,1802.5,1802.4,0.1]
[1680543708993,18.72168218,1802.5,1802.4,0.1]
[1680543709189,19.35005564,1802.5,1802.4,0.03716265]
[1680543709723,22.69105564,1802.5,1802.3,0.1]
[1680543709887,14.36100556,1802.4,1802.3,0.1]
[1680543710094,20.11423774,1802.4,1802.3,0.1]
[1680543710670,20.13429189,1802.4,1802.3,0.1]
[1680543710871,17.36826971,1802.4,1802.3,0.1]
[1680543711121,14.42314652,1802.4,1802.3,0.1]
[1680543712197,6.41514652,1802.4,1802.3,0.1]
[1680543713175,8.56814652,1802.4,1802.3,0.1]
[1680543713382,14.42314652,1802.4,1802.3,0.1]
[1680543713584,20.5301687,1802.4,1802.3,0.1]
[1680543713818,20.5301687,1802.4,1801.9,0.1]
[1680543714031,5.855,1802.2,1801.9,0.1]
[1680543714180,7.07516,1802.1,1801.9,0.1]
[1680543714384,7.07716,1802.1,1801.9,0.1]
[1680543715134,12.93216,1802.1,1801.9,0.1]
[1680543717086,0.62115611,1802.0,1801.9,0.03788439]
[1680543717342,2.74676211,1802.0,1801.9,0.03788439]
[1680543717645,5.76681626,1802.0,1801.9,0.03788439]
[1680543717828,5.76881626,1802.0,1801.9,0.03788439]
[1680543718027,5.76881626,1802.0,1801.7,0.1]
[1680543718233,3.57688163,1801.9,1801.7,0.1]
[1680543718456,0.8325,1801.8,1801.7,0.1]
[1680543719245,1.44957945,1801.8,1801.7,0.03829206]
[1680543720173,1.44957945,1801.8,1801.6,0.1]
[1680543720994,0.61707945,1801.8,1801.6,0.1]
[1680543721179,0.5517678,1801.7,1801.6,0.2452202]
[1680543721345,0.5517678,1801.7,1801.6,0.10366871]
[1680543721548,0.5517678,1801.7,1801.6,0.63166871]
[1680543721746,0.5517678,1801.7,1801.6,0.38719871]
[1680543721983,0.5517678,1801.7,1801.6,0.63766871]
[1680543722182,0.5517678,1801.7,1801.6,0.10966871]
[1680543722387,5.63856,1802.1,1801.6,0.10966871]
[1680543723400,0.002,1802.1,1801.7,3.99402218]
[1680543723597,0.27744,1802.2,1801.8,0.00366831]
[1680543723908,10.86593,1802.3,1801.8,0.00366831]
[1680543724545,10.86593,1802.3,1801.8,0.28115831]
[1680543724829,0.27943,1802.3,1801.8,0.28115831]
[1680543725033,0.27743,1802.3,1801.8,0.28115831]
[1680543725333,1.17079201,1802.2,1801.8,0.00366831]
[1680543725534,0.89335201,1802.2,1801.8,0.00366831]
[1680543725695,0.89335201,1802.2,1801.8,0.28116831]
[1680543725894,0.89335201,1802.2,1801.8,0.00366831]
[1680543726134,0.89335201,1802.2,1801.8,0.28115831]
[1680543726591,0.89335201,1802.2,1801.8,0.00366831]
[1680543726798,0.89335201,1802.2,1801.8,0.28115831]
[1680543727042,1.17079201,1802.2,1801.8,0.00366831]
[1680543727506,1.72566201,1802.2,1801.8,0.00366831]
[1680543730315,2.00920121,1802.2,1801.8,0.00366831]
[1680543731267,2.02925536,1802.2,1801.8,0.00366831]
[1680543731815,2.02925536,1802.2,1801.7,0.006]
[1680543732120,2.02925536,1802.2,1801.6,0.1]
[1680543732121,7.88425536,1802.2,1801.6,0.1]
[1680543732321,10.64144772,1802.1,1801.6,0.1]
[1680543732551,7.076,1801.9,1801.6,0.1]
[1680543732760,1.9425,1801.8,1801.6,0.1]
[1680543733145,1.96255415,1801.8,1801.6,0.1]
[1680543734356,0.2775,1801.8,1801.6,0.1]
[1680543734651,0.8325,1801.8,1801.6,0.1]
[1680543735013,0.2775,1801.8,1801.6,0.1]
[1680543735236,0.8325,1801.8,1801.6,0.1]
[1680543735951,0.2775,1801.8,1801.6,0.1]
[1680543736179,13.15425415,1802.0,1801.6,0.1]
[1680543736316,15.25652212,1802.0,1801.6,0.1]
[1680543736523,15.53399212,1802.0,1801.6,0.1]
[1680543736720,12.25652212,1802.0,1801.6,0.1]
[1680543737072,10.15425415,1802.0,1801.6,0.1]
[1680543737213,10.1342,1802.0,1801.6,8.99855218]
[1680543737418,0.002,1802.0,1801.7,0.00366851]
[1680543737618,5.851,1802.1,1801.7,0.28117851]
[1680543738017,0.002,1802.1,1801.7,1.51017851]
[1680543738280,0.89335201,1802.2,1801.7,1.51617851]
[1680543738977,0.89335201,1802.2,1801.9,7.35448]
[1680543739115,0.89335201,1802.2,1801.9,9.84869028]
[1680543739480,0.89335201,1802.2,1801.9,9.85469028]
[1680543740024,0.89335201,1802.2,1801.9,3.99969028]
[1680543740224,1.17078201,1802.2,1801.9,3.99169028]
[1680543741020,1.17078201,1802.2,1801.9,3.99769028]
[1680543741421,0.89335201,1802.2,1801.9,9.85269028]
[1680543741668,1.17078201,1802.2,1801.9,3.99969028]
[1680543741838,0.89335201,1802.2,1801.9,3.99769028]
[1680543742038,0.89335201,1802.2,1801.9,9.84669028]
[1680543742257,1.17079201,1802.2,1801.9,2.77769028]
[1680543742433,1.17079201,1802.2,1801.9,2.76969028]
[1680543743071,1.17079201,1802.2,1801.9,2.77569028]
[1680543743477,1.74571616,1802.2,1801.9,0.006]
[1680543743712,1.92028778,1802.2,1801.6,0.95017913]
[1680543743876,1.19084616,1802.2,1801.7,2.76602218]
[1680543744056,1.19084616,1802.2,1801.7,3.04953218]
[1680543744413,0.89335201,1802.2,1801.7,8.90453218]
[1680543744552,0.89050539,1802.2,1801.7,9.46156218]
[1680543744760,0.89050539,1802.2,1801.7,9.98956218]
[1680543744996,0.89050539,1802.2,1801.7,9.46156218]
[1680543745305,45.2679,1802.5,1802.0,0.83238]
[1680543745508,45.2679,1802.5,1802.0,0.27745]
[1680543745715,20.24268,1802.5,1802.0,0.27745]
[1680543745874,15.4379,1802.5,1802.1,2.76602218]
[1680543746075,0.2794,1802.5,1802.1,0.006]
[1680543746274,0.85630494,1802.4,1802.0,0.0036679]
[1680543746493,1.13371494,1802.4,1802.0,8.62469008]
[1680543746802,1.68852494,1802.4,1802.0,2.77769008]
[1680543747010,1.68852494,1802.4,1802.0,0.0036679]
[1680543749375,1.68852494,1802.4,1801.8,8.4006679]
[1680543749571,1.13971494,1802.4,1801.9,2.76602218]
[1680543750020,1.03412764,1802.4,1801.9,2.76602218]
[1680543750681,1.31152764,1802.4,1801.9,2.76602218]
[1680543750876,1.03412764,1802.4,1801.9,3.04349218]
[1680543751093,1.31153764,1802.4,1801.9,2.76602218]
[1680543751832,1.31153764,1802.4,1801.9,3.04350218]
[1680543752032,1.03412764,1802.4,1801.9,3.04350218]
[1680543752406,1.31153764,1802.4,1801.9,3.04350218]
[1680543752608,0.13115376,1802.3,1801.8,0.27948]
[1680543752806,0.13115376,1802.3,1801.8,6.04351218]
[1680543753032,1.03412764,1802.4,1801.8,6.04551218]
[1680543753235,0.84578823,1802.2,1801.9,2.76602218]
[1680543753404,0.84578823,1802.2,1802.0,0.83238]
[1680543753935,0.84578823,1802.2,1802.1,2.76602218]
[1680543754244,0.006,1802.4,1802.1,3.04347218]
[1680543754393,0.02972206,1802.5,1802.1,3.04347218]
[1680543755325,0.02972206,1802.5,1802.1,8.89847218]
[1680543755500,0.02972206,1802.5,1802.1,8.62302218]
[1680543755707,0.02972206,1802.5,1802.1,8.90047218]
[1680543758200,0.02972206,1802.5,1802.1,8.62302218]
[1680543758394,0.30711206,1802.5,1802.1,0.002]
[1680543758591,0.02972206,1802.5,1802.0,0.27746]
[1680543758797,0.30711206,1802.5,1802.0,2.76602218]
[1680543759101,0.02972206,1802.5,1802.0,0.27746]
[1680543759431,0.02972206,1802.5,1802.0,0.83239]
[1680543760238,0.02972206,1802.5,1802.0,0.27746]
[1680543760542,0.02972206,1802.5,1801.9,2.71740187]
[1680543760543,0.86189206,1802.5,1801.9,2.71740187]
[1680543760696,0.08618921,1802.4,1801.9,2.76602218]
[1680543760899,0.36359921,1802.4,1801.9,2.76602218]
[1680543761241,0.36958921,1802.4,1801.9,3.04350218]
[1680543761539,0.006,1802.4,1801.9,3.04350218]
[1680543761833,0.28341,1802.4,1801.9,2.76602218]
[1680543762038,0.2834,1802.4,1802.0,8.62102218]
[1680543762199,0.2834,1802.4,1802.0,8.62302218]
[1680543762401,0.2834,1802.4,1802.0,0.002]
[1680543762594,0.2834,1802.4,1801.8,6.42240187]
[1680543762838,0.2834,1802.4,1801.9,2.76602218]
[1680543763036,0.83821,1802.4,1801.8,0.56940187]
[1680543763236,0.83821,1802.4,1801.8,3.33342405]
[1680543763740,0.83821,1802.4,1801.8,3.61091405]
[1680543764057,0.367221,1802.4,1801.8,3.61091405]
[1680543765062,0.089821,1802.4,1801.8,4.16591405]
[1680543765212,0.11354306,1802.4,1801.8,4.16591405]
[1680543765403,6.80076306,1802.4,1801.8,0.56740187]
[1680543765615,0.68007631,1802.3,1801.6,1.236061]
[1680543765817,0.27745,1802.1,1801.6,4.58379727]
[1680543766043,0.36305421,1802.1,1801.6,4.58379727]
[1680543766212,0.91795421,1802.1,1801.6,3.43342405]
[1680543766415,0.91795421,1802.1,1801.6,4.30626727]
[1680543766642,0.91795421,1802.1,1801.6,3.43342405]
[1680543766947,0.92395421,1802.1,1801.6,0.66740187]
[1680543767707,0.36987542,1802.0,1801.6,0.66740187]
[1680543767912,0.09239542,1802.0,1801.6,0.66740187]
[1680543768342,0.36906421,1802.1,1801.6,0.66740187]
[1680543769363,0.83151014,1802.0,1801.6,0.66740187]
[1680543769713,0.83151014,1802.0,1801.6,0.94491187]
[1680543770114,0.83151014,1802.0,1801.7,0.56740187]
[1680543770313,0.83151014,1802.0,1801.7,0.27751]
[1680543770535,0.83151014,1802.0,1801.6,1.81775509]
[1680543770760,0.83151014,1802.0,1801.7,0.27751]
[1680543771558,0.83151014,1802.0,1801.6,1.54024509]
[1680543771866,0.83151014,1802.0,1801.7,0.27751]
[1680543772216,0.83151014,1802.0,1801.8,3.04350218]
[1680543772568,0.82849632,1802.0,1801.8,9.45350218]
[1680543772708,0.82849632,1802.0,1801.8,12.17290405]
[1680543772913,0.82849632,1802.0,1801.9,0.293]
[1680543773161,29.838,1802.5,1801.9,10.31386405]
[1680543773468,29.838,1802.5,1802.0,8.62102218]
[1680543773630,0.008,1802.5,1802.1,0.27744]
[1680543773808,10.82402,1802.7,1802.1,2.76602218]
[1680543774012,10.82402,1802.7,1802.1,3.04347218]
[1680543774013,15.22037436,1802.7,1802.1,3.04347218]
[1680543774255,0.77275057,1802.4,1802.1,3.04347218]
[1680543774463,0.77275057,1802.4,1802.2,2.76602218]
[1680543775210,1.05015057,1802.4,1802.2,2.76602218]
[1680543775564,1.43257563,1802.4,1802.1,0.002]
[1680543775709,0.77275057,1802.4,1802.0,5.855]
[1680543775917,0.77275057,1802.4,1802.0,8.62302218]
[1680543776344,1.05015057,1802.4,1802.0,2.76802218]
[1680543776526,1.05015057,1802.4,1802.0,8.62102218]
[1680543776866,0.77275057,1802.4,1802.0,8.62302218]
[1680543777030,0.02372206,1802.3,1802.0,0.002]
[1680543777210,0.02372206,1802.3,1801.8,0.56740187]
[1680543777414,1.05017057,1802.4,1801.9,2.76602218]
[1680543777623,0.77275057,1802.4,1802.0,5.855]
[1680543777819,1.05016057,1802.4,1802.0,8.62302218]
[1680543778066,1.05016057,1802.4,1802.0,0.002]
[1680543778067,1.32756057,1802.4,1802.0,0.002]
[1680543778234,1.32756057,1802.4,1801.8,0.56740187]
[1680543778235,1.05015057,1802.4,1801.8,0.56740187]
[1680543778437,0.13275606,1802.3,1801.8,0.56740187]
[1680543778632,0.96504606,1802.3,1801.7,6.69991187]
[1680543778833,0.43389812,1802.3,1801.7,9.46793405]
[1680543779162,0.30114206,1802.3,1801.7,9.46793405]
[1680543779854,0.02372206,1802.3,1801.7,9.46793405]
[1680543780232,0.76964356,1802.2,1801.7,9.46793405]
[1680543780560,0.76964356,1802.2,1801.8,2.76602218]
[1680543780855,0.76964356,1802.2,1801.9,8.89849218]
[1680543781198,0.006,1802.4,1801.9,9.19042405]
[1680543781405,35.4938,1802.5,1801.9,0.002]
[1680543781608,0.83227,1802.3,1801.8,0.56740187]
[1680543784162,0.8591942,1802.2,1801.8,0.56740187]
[1680543784360,0.27745,1802.1,1801.8,0.56740187]
[1680543784784,0.83235,1802.1,1801.8,0.56740187]
[1680543785293,0.27745,1802.1,1801.8,0.56740187]
[1680543785595,0.27745,1802.1,1801.7,1.44024509]
[1680543786155,1.6915242,1802.2,1801.7,4.20626727]
[1680543786357,0.8591942,1802.2,1801.8,0.56740187]
[1680543786795,1.1366342,1802.2,1801.8,0.56740187]
[1680543786986,1.83528283,1802.2,1801.8,0.56740187]
[1680543789586,1.83528283,1802.2,1801.7,1.44024509]
[1680543789794,1.83528283,1802.2,1801.7,0.56740187]
[1680543791297,7.69028283,1802.2,1801.7,0.56740187]
[1680543791498,7.69228283,1802.2,1801.6,1.54024509]
[1680543791709,0.83242,1802.0,1801.6,1.54024509]
[1680543792013,0.83242,1802.0,1801.6,0.66740187]
[1680543792164,0.83242,1802.0,1801.6,0.1]
[1680543792865,0.02372206,1801.9,1801.6,0.1]
[1680543793068,0.38682627,1801.9,1801.6,0.1]
[1680543794082,0.85617206,1801.9,1801.6,0.1]
[1680543795678,3.85617206,1801.9,1801.6,0.1]
[1680543796413,5.855,1801.7,1801.6,0.1]
[1680543796594,12.9526,1801.7,1801.6,0.1]
[1680543797379,12.9560792,1801.7,1801.6,0.1]
[1680543797674,16.05004812,1801.7,1801.6,0.1]
[1680543798975,17.05004812,1801.7,1801.6,0.1]
[1680543799208,17.89262754,1801.7,1801.6,0.1]
[1680543799390,22.99964972,1801.7,1801.6,0.1]
[1680543799593,22.99964972,1801.7,1801.5,0.1]
[1680543799594,2.29996497,1801.6,1801.5,0.1]
[1680543799807,5.8524792,1801.4,1801.3,0.1]
[1680543800005,12.7270092,1801.4,1801.3,0.1]
[1680543800308,15.75073126,1801.4,1801.3,0.1]
[1680543800494,24.14352878,1801.4,1801.3,0.1]
[1680543800664,24.37352878,1801.4,1801.3,0.1]